[Event "Polish Youth Ekstraliga 2022"]
[Site "Lublin"]
[Date "2022.06.29"]
[Round "5.22"]
[White "Kaszuba, Michal"]
[Black "Golis, Wiktor"]
[Result "0-1"]
[ECO "B13"]
[WhiteElo "1307"]
[BlackElo "1653"]
[Annotator "NA RC"]
[PlyCount "66"]
[EventDate "2022.06.24"]
[EventType "team-tourn"]
[EventCountry "POL"]
[SourceTitle "playchess.com"]
[Source "ChessBase"]
[SourceQuality "1"]
[TimeControl "40/5400+30:1800+30"]

1. e4 {[%emt 0:00:09]} c6 {[%emt 0:01:18]} 2. d4 {[%emt 0:00:08]} d5 {[%emt 0:00:07]} 3. exd5 {[%emt 0:00:12]} cxd5 {[%emt 0:00:08]} 4. Bd3 {[%emt 0:00:18]} Nc6 {[%emt 0:00:07]} 5. c3 {[%emt 0:00:12]} Qc7 {[%emt 0:00:05]} 6. h3 {[%emt 0:03:47]} g6 {[%emt 0:01:14]} 7. Nf3 {[%emt 0:00:59]} Bf5 {[%emt 0:00:13]} 8. O-O {[%emt 0:00:28]} Nf6 {[%emt 0:00:12]} 9. Qe2 {[%emt 0:14:04]} Bxd3 {[%emt 0:03:33]} 10. Qxd3 {[%emt 0:01:00]} Bg7 {[%emt 0:00:13]} 11. Nbd2 {[%emt 0:13:46]} O-O {[%emt 0:01:12]} 12. Re1 {[%emt 0:05:58]} Rad8 {[%emt 0:04:49]} 13. Qe3 {[%emt 0:22:56]} Nd7 {[%emt 0:05:27]} 14. b3 {[%emt 0:11:43]} Rfe8 {[%emt 0:02:58]} 15. Ba3 {[%emt 0:06:33]} e5 {[%emt 0:01:15]} 16. dxe5 {[%emt 0:07:17]} Ncxe5 {[%emt 0:01:56]} 17. Nxe5 {[%emt 0:05:21]} Bxe5 {[%emt 0:02:33]} 18. f4 {[%emt 0:03:54]} Bxc3 {[%emt 0:01:01]} 19. Qxe8+ {[%emt 0:00:06]} Rxe8 {[%emt 0:00:06]} 20. Rxe8+ {[%emt 0:00:04]} Kg7 {[%emt 0:00:13]} 21. Rd1 {[%emt 0:01:31]} Bd4+ {[%emt 0:06:02]} 22. Kf1 {[%emt 0:00:31]} Qc2 {[%emt 0:02:03]} 23. Ke2 {[%emt 0:00:30]} Qxa2 {[%emt 0:00:52]} 24. Bb4 {[%emt 0:00:24]} Qa6+ {[%emt 0:02:12]} 25. Ke1 {[%emt 0:00:36]} Qb5 {[%emt 0:00:28]} 26. Bd6 {[%emt 0:00:21]} Qc6 {[%emt 0:04:43]} 27. Ba3 {[%emt 0:00:39]} Nc5 {[%emt 0:00:36]} 28. Re2 {[%emt 0:00:29]} Nd3+ {[%emt 0:00:22]} 29. Kf1 {[%emt 0:00:30]} Nxf4 {[%emt 0:00:13]} 30. Re7 {[%emt 0:00:33]} Qa6+ {[%emt 0:00:16]} 31. Nc4 {[%emt 0:00:29]} dxc4 {[%emt 0:00:20]} 32. Bc1 {[%emt 0:00:30]} c3+ {[%emt 0:00:15]} 33. Ke1 {[%emt 0:00:18]} Nxg2# {[%emt 0:00:07]} 0-1

[Event "Polish Youth Ekstraliga 2022"]
[Site "Lublin"]
[Date "2022.06.29"]
[Round "5.23"]
[White "Wikar, Martyna"]
[Black "Goraj, Barbara"]
[Result "1-0"]
[ECO "B26"]
[WhiteElo "2197"]
[BlackElo "2035"]
[Annotator "TA"]
[PlyCount "107"]
[EventDate "2022.06.24"]
[EventType "team-tourn"]
[EventCountry "POL"]
[SourceTitle "playchess.com"]
[Source "ChessBase"]
[SourceQuality "1"]
[TimeControl "40/5400+30:1800+30"]

{[%evp 14,107,9,-9,17,-39,-43,-45,-31,-47,-16,-57,-25,-58,-65,-46,-54,-49,0,-14,12,19,29,26,37,54,72,47,41,-56,-48,-97,4,-20,-8,0,0,0,0,-9,20,17,87,0,77,78,106,89,137,41,41,42,156,17,30,21,57,0,15,0,0,-54,-52,-61,239,225,229,239,453,462,446,426,398,342,343,371,584,580,580,426,29976,29977,29976,29977,29982,29983,29983,29984,29984,29985,29985,29986,29985,29982,29982,29979]} 1. e4 {[%emt 0:01:40]} c5 {[%emt 0:00:11]} 2. Nc3 {[%emt 0:00:10]} Nc6 {[%emt 0:00:07]} 3. g3 {[%emt 0:00:08]} g6 {[%emt 0:00:23]} 4. Bg2 {[%emt 0:00:08]} Bg7 {[%emt 0:00:15]} 5. d3 {[%emt 0:01:09]} d6 {[%emt 0:01:04]} 6. Be3 {[%emt 0:00:38]} e6 {[%emt 0:00:58]} 7. Qd2 {[%emt 0:01:09]} Rb8 {[%emt 0:01:18]} 8. h4 {[%emt 0:01:35]} b5 {[%emt 0:09:25][%cal Bb7b5,Bb5b4][%mdl 32] B26: Closed Sicilian: 3 g3, lines with early Be3.} 9. Nh3 {[%emt 0:03:58]} (9. h5 $11) 9... b4 $15 {[%emt 0:03:30]} 10. Nd1 {[%emt 0:00:22][%cal Oh4h5] [#]} a5 $146 {[%emt 0:02:05] Black is slightly better.} ({Predecessor:} 10... Bd7 11. f3 Qa5 12. h5 Nd4 13. h6 Bf6 14. Bg5 Bxg5 15. Nxg5 f6 16. Nh3 Ne7 {1-0 (44) Efler,L (2300)-Hadraba,V (2250) Czech Republic 1998}) 11. O-O {[%emt 0:00:47]} a4 {[%emt 0:14:23]} 12. Rb1 {[%emt 0:08:29]} Nd4 {[%emt 0:05:44]} 13. f4 {[%emt 0:00:57]} Ne7 {[%emt 0:03:55]} 14. Rc1 {[%emt 0:07:59]} O-O {[%emt 0:09:45]} 15. c3 {[%emt 0:01:12]} bxc3 {[%emt 0:01:41]} 16. bxc3 {[%emt 0:00:08]} Nb5 {[%emt 0:01:19]} 17. h5 {[%emt 0:02:16]} f5 {[%emt 0:05:55]} 18. hxg6 {[%emt 0:03:08]} Nxg6 {[%emt 0:03:20]} 19. exf5 {[%emt 0:05:00]} Rxf5 {[%emt 0:05:08]} 20. Be4 {[%emt 0:05:21]} Rf6 {[%emt 0:06:51]} 21. g4 {[%emt 0:16:45]} (21. Qh2 $14) 21... d5 {[%emt 0:02:21]} 22. Bh1 {[%emt 0:02:42]} (22. g5 $2 Rf7 23. Bxg6 hxg6 24. Bxc5 e5 $19) (22. Bg2 $15) 22... Qd6 {[%emt 0:01:38]} (22... d4 $17 23. cxd4 cxd4) 23. Qh2 {[%emt 0:01:07]} Ne7 {[%emt 0:06:04]} (23... d4 24. cxd4 cxd4 25. Bd2 $16) 24. f5 {[%emt 0:10:36] Prevents Rg6.} Qxh2+ {[%emt 0:07:04]} (24... exf5 $2 25. Bf4 Qb6 26. Bxb8 $18) 25. Kxh2 {[%emt 0:00:01]} exf5 {[%emt 0:00:14]} 26. g5 $132 {[%emt 0:02:53][%mdl 2048] White is not holding back} Re6 {[%emt 0:02:52][%cal Ob5c3] Hoping for ...Nxc3!} 27. Bxc5 {[%emt 0:02:25] Black should prevent d4.} Re2+ {[%emt 0:00:06]} (27... Be5+ $11 28. Kg1 Bd7) 28. Kg3 {[%emt 0:04:20]} (28. Kg1 $16 {aiming for Nf4.} Ng6 29. Bxd5+ Be6 30. Bxe6+ Rxe6 31. Rb1 (31. Rxf5 Rc8 $14)) 28... Ng6 {[%emt 0:01:13]} (28... Be5+ $11 29. Nf4 Ng6 30. Bxd5+ Kg7) 29. Bxd5+ $16 {[%emt 0:01:01]} Kh8 {[%emt 0:00:25]} 30. d4 {[%emt 0:04:06] Inhibits Be5+.} Bd7 {[%emt 0:01:14] [#]} (30... Bb7 $142 31. Bxb7 (31. Rxf5 Bxd5 32. Rxd5 Nc7 $16) 31... Rxb7) 31. Nf4 {[%emt 0:02:06] Really sharp!} (31. Rb1 $1 $16) 31... Nxf4 $14 {[%emt 0:01:00]} 32. Rxf4 {[%emt 0:01:45] Rb1 is the strong threat.} Rbe8 {[%emt 0:01:24]} ({Better is} 32... Nc7 $14 33. Bc4 Re1) 33. Nf2 {[%emt 0:01:11]} ({White should try} 33. c4 $16 Nc7 34. Bf7) 33... Nc7 $11 {[%emt 0:02:20]} 34. Bc4 {[%emt 0:00:28]} Rd2 {[%emt 0:00:42]} 35. Rd1 {[%emt 0:05:44]} Rc2 {[%emt 0:00:50]} 36. Bb4 {[%emt 0:00:05]} Bf8 {[%emt 0:01:12]} 37. Bxf8 {[%emt 0:02:30]} (37. Rb1 $11) 37... Rxc3+ $15 {[%emt 0:00:10]} 38. Rd3 {[%emt 0:00:50]} Rxd3+ {[%emt 0:00:17][%mdl 8192] Black cannot hold the game after this.} (38... Rxc4 $15 39. Bd6 Nd5 40. Be5+ Kg8) 39. Nxd3 $18 {[%emt 0:00:37]} Rxf8 {[%emt 0:00:06] [#]} 40. d5 {[%emt 0:00:00][%cal Bd4d5,Bd5d6][%mdl 32] Prevents Be6. And now Nc5 would win.} Kg7 $2 {[%emt 0:00:00]} (40... Ne8 41. Nc5 Bc8) 41. Nc5 {[%emt 0:01:39]} Rd8 {[%emt 0:11:18]} 42. d6 {[%emt 0:05:15]} Ne8 {[%emt 0:01:04]} 43. Nxd7 {[%emt 0:01:41] Black must now prevent Nc5.} ({Resist} 43. Be6 Bc6 44. d7 (44. Bxf5 Rxd6 45. Ne6+ Kf7 $18) (44. Rxf5 Nxd6 45. Rf4 Re8 $14) 44... Nd6 45. Bxf5 Nxf5+ 46. Rxf5 Bxd7) 43... Rxd7 {[%emt 0:01:22][%mdl 4096] Endgame KRB-KRN} 44. Bb5 {[%emt 0:00:07]} Rd8 {[%emt 0:01:52]} (44... Rxd6 $142 45. Bxe8 Rd8) 45. Bxe8 {[%emt 0:13:40]} Rxe8 {[%emt 0:00:06]} 46. Rxa4 {[%emt 0:03:02] White wants to mate with Rd4. KR-KR} Re3+ {[%emt 0:01:52]} (46... Rd8 $18 47. Rd4 Kg6) 47. Kf4 {[%emt 0:00:37] White mates.} Rd3 {[%emt 0:02:07]} 48. Ke5 {[%emt 0:00:28]} Kg6 {[%emt 0:02:51]} 49. Rd4 {[%emt 0:00:16]} Re3+ {[%emt 0:00:26]} 50. Kf4 {[%emt 0:01:32]} Re8 {[%emt 0:00:11]} 51. d7 {[%emt 0:00:04]} Rd8 {[%emt 0:00:06]} 52. a4 {[%emt 0:00:27]} Kf7 {[%emt 0:00:50]} 53. Kxf5 {[%emt 0:00:09]} Ke7 {[%emt 0:00:06]} 54. Ke4 {Weighted Error Value: White=0.31/Black=0.63} 1-0

[Event "Polish Youth Ekstraliga 2022"]
[Site "Lublin"]
[Date "2022.06.29"]
[Round "5.24"]
[White "Jaros, Emilia"]
[Black "Natoli, Alessia"]
[Result "0-1"]
[ECO "B07"]
[WhiteElo "1366"]
[BlackElo "1680"]
[Annotator "NA RC"]
[PlyCount "76"]
[EventDate "2022.06.24"]
[EventType "team-tourn"]
[EventCountry "POL"]
[SourceTitle "playchess.com"]
[Source "ChessBase"]
[SourceQuality "1"]
[TimeControl "40/5400+30:1800+30"]

1. e4 d6 2. d4 Nf6 3. Nc3 e5 4. Nge2 Nbd7 5. a4 Be7 6. Ng3 O-O 7. Bc4 c6 8. O-O Re8 9. Be3 Bf8 10. Bb3 b6 11. f4 Bb7 12. fxe5 dxe5 13. Nh5 Be7 14. Nxf6+ Bxf6 15. d5 Rf8 16. Qg4 g6 17. dxc6 Bxc6 18. Nd5 Bxd5 19. Bxd5 Rc8 20. Rf2 h5 21. Qxg6+ Kh8 22. Rxf6 fxg6 23. Rxg6 Rf6 24. Rg5 Qe8 25. Rd1 Nf8 26. c4 Nh7 27. Rg3 Qxa4 28. Rc1 Qa2 29. Rh3 Qxb2 30. Rxh5 Qe2 31. Rh3 Rcf8 32. Rf3 Rxf3 33. gxf3 Qxe3+ 34. Kg2 Qxc1 35. h4 Qe3 36. Kh2 Rxf3 37. Be6 Rf2+ 38. Kg1 Qe1# 0-1

[Event "Polish Youth Ekstraliga 2022"]
[Site "Lublin"]
[Date "2022.06.29"]
[Round "5.25"]
[White "Ciborowski, Konrad Jr"]
[Black "Niedbala, Bartlomiej"]
[Result "1/2-1/2"]
[ECO "B90"]
[WhiteElo "1927"]
[BlackElo "2384"]
[Annotator "TA"]
[PlyCount "97"]
[EventDate "2022.06.24"]
[EventType "team-tourn"]
[EventCountry "POL"]
[SourceTitle "playchess.com"]
[Source "ChessBase"]
[SourceQuality "1"]
[TimeControl "40/5400+30:1800+30"]

{[%evp 15,97,-17,-8,-34,-10,-6,0,11,-5,0,0,0,0,5,0,-62,-36,-57,-63,-53,34,37,74,62,71,69,64,68,51,19,42,54,27,35,17,37,26,25,18,17,21,0,0,0,0,0,0,0,0,0,0,0,0,0,8,8,8,8,8,8,13,13,13,13,129,115,214,204,220,183,383,56,72,22,22,18,28,8,8,0,0,0,0,0]} 1. e4 {[%emt 0:00:01]} c5 {[%emt 0:01:21]} 2. Nf3 {[%emt 0:00:05]} d6 {[%emt 0:00:04]} 3. d4 {[%emt 0:00:05]} cxd4 {[%emt 0:00:03]} 4. Nxd4 {[%emt 0:00:04]} Nf6 {[%emt 0:00:05]} 5. Nc3 {[%emt 0:00:02]} a6 {[%emt 0:00:07]} 6. Bc4 {[%emt 0:00:24]} e6 {[%emt 0:00:39]} 7. Bb3 {[%emt 0:00:05]} Nbd7 {[%emt 0:02:12]} 8. g4 {[%emt 0:26:17]} Nc5 {[%emt 0:03:57]} 9. Qe2 {[%emt 0:00:09] B86: Sicilian Scheveningen/Najdorf: 6 Bc4, without early ...b5.} b5 {[%emt 0:11:48]} 10. g5 {[%emt 0:02:55]} b4 {[%emt 0:15:48]} 11. gxf6 {[%emt 0:00:24][%cal Oc3d5]} bxc3 {[%emt 0:00:06]} 12. fxg7 {[%emt 0:05:42]} Bxg7 {[%emt 0:00:20]} 13. bxc3 {[%emt 0:00:03]} Qh4 {[%emt 0:01:42]} 14. Rg1 {[%emt 0:02:59]} Be5 {[%emt 0:04:01] [#]} 15. Bd2 $146 {[%emt 0:06:18]} ({White should play} 15. Be3 $11) ({Predecessor:} 15. Be3 Qxe4 16. O-O-O Bf4 17. Bxf4 Qxf4+ 18. Kb2 Bd7 19. Rg4 Qf6 20. Rg3 Rb8 21. Rf3 {1-0 (40) Novita,A (2381)-Turqueza,M (2290) Penang 2019}) 15... Qxe4 $15 {[%emt 0:04:25]} (15... Nxe4 $2 16. Nf3 Qxf2+ 17. Qxf2 $18) 16. Qxe4 {[%emt 0:04:41]} Nxe4 {[%emt 0:00:07]} 17. f4 {[%emt 0:00:29]} Nxd2 {[%emt 0:14:04]} (17... Bf6 $15) 18. fxe5 $14 {[%emt 0:00:12]} Nxb3 {[%emt 0:01:51]} 19. axb3 {[%emt 0:00:49]} dxe5 {[%emt 0:00:52]} 20. Nc6 {[%emt 0:00:21]} Bb7 {[%emt 0:12:25]} 21. Nxe5 {[%emt 0:00:37] 0x0.001764296392dp-1022s more active pieces. The black rooks are badly placed.} Rc8 {[%emt 0:03:41]} 22. Rg7 {[%emt 0:05:03]} Rc5 {[%emt 0:09:27]} 23. Nxf7 {[%emt 0:02:41] White wants to mate with Nd6+.} Kf8 {[%emt 0:00:56]} 24. Rg5 {[%emt 0:00:06]} (24. Nxh8 $2 Re5+ 25. Kd2 Kxg7 26. Rg1+ Kxh8 $19) 24... Rxg5 {[%emt 0:00:50]} 25. Nxg5 {[%emt 0:00:04][%mdl 4096] Endgame KRB-KRN} Rg8 $1 {[%emt 0:03:28]} 26. Nxh7+ {[%emt 0:06:18]} (26. Nxe6+ $2 Ke7 27. O-O-O Kxe6 $17) 26... Ke7 {[%emt 0:01:21] White must now prevent ...Rg1+.} 27. Ra4 {[%emt 0:00:03]} Rg2 $1 {[%emt 0:02:21][%csl LRc2,LRh2]} 28. Rh4 {[%emt 0:05:18][%cal Oh7g5]} Rxc2 {[%emt 0:01:28]} 29. Rh3 {[%emt 0:00:29]} Be4 {[%emt 0:01:46]} 30. Ng5 {[%emt 0:02:42]} Bf5 {[%emt 0:00:12]} 31. Re3 {[%emt 0:01:38]} Rxh2 {[%emt 0:00:21]} 32. b4 {[%emt 0:01:59]} Kd6 {[%emt 0:01:34]} 33. Nf3 {[%emt 0:02:30]} Rh3 {[%emt 0:00:48]} 34. Kd2 {[%emt 0:00:22]} Bg4 {[%emt 0:00:53]} 35. Rd3+ {[%emt 0:00:42]} Ke7 {[%emt 0:00:24]} 36. Ne5 {[%emt 0:00:05]} Rh2+ {[%emt 0:00:02]} 37. Ke3 {[%emt 0:00:07]} Re2+ {[%emt 0:01:22]} 38. Kd4 {[%emt 0:00:05]} Bf5 {[%emt 0:00:29] And now ...Re4+ would win.} 39. Re3 {[%emt 0:00:46] Prevents Re4+.} Rd2+ {[%emt 0:01:18]} (39... Rxe3 $11 40. Kxe3 Kd6) 40. Kc5 $1 $16 {[%emt 0:00:00]} Rd1 {[%emt 0:00:00] [#]} (40... Kf6 $16 {was worth a try.}) 41. Kb6 $1 $18 {[%emt 0:06:53]} Ra1 {[%emt 0:07:32]} 42. Nc6+ {[%emt 0:05:57]} Kd6 $2 {[%emt 0:00:45] [#]} (42... Kf6 43. c4 Kg5) 43. Na5 $2 {[%emt 0:00:04]} ({White must play} 43. c4 $1 $18 {[%cal Rc4c5]}) 43... Kd5 $14 {[%emt 0:01:38]} 44. Re2 {[%emt 0:05:31]} (44. Kxa6 $16 {Hoping for c4+.} e5 45. Rf3) 44... Bd3 $11 {[%emt 0:11:04] Against c4+} 45. Rd2 {[%emt 0:05:23]} Ke4 {[%emt 0:00:09]} 46. Nb3 {[%emt 0:00:03]} Ke3 {[%emt 0:00:25] The position is equal.} 47. Rxd3+ {[%emt 0:00:05]} Kxd3 {[%emt 0:00:03]} 48. Nxa1 {[%emt 0:00:05]} Kxc3 {[%emt 0:00:01]} 49. Nc2 {[%emt 0:04:33] Weighted Error Value: White=0.25 (precise) /Black=0.19 (very precise)} 1/2-1/2

[Event "Polish Youth Ekstraliga 2022"]
[Site "Lublin"]
[Date "2022.06.29"]
[Round "5.26"]
[White "Redzisz, Michal"]
[Black "Wydmanski, Szymon"]
[Result "1-0"]
[ECO "A61"]
[WhiteElo "2236"]
[BlackElo "1815"]
[Annotator "TA"]
[PlyCount "113"]
[EventDate "2022.06.24"]
[EventType "team-tourn"]
[EventCountry "POL"]
[SourceTitle "playchess.com"]
[Source "ChessBase"]
[SourceQuality "1"]
[TimeControl "40/5400+30:1800+30"]

{[%evp 24,113,53,35,35,46,123,83,81,90,73,84,85,93,90,83,85,64,138,74,195,160,159,127,132,135,145,118,212,216,209,135,222,233,202,56,43,52,46,42,45,40,41,63,47,50,147,162,176,173,164,167,713,717,684,677,775,730,741,730,767,767,767,767,767,767,760,760,756,756,749,714,654,0,716,698,670,572,698,663,629,603,29975,29976,29979,29980,29980,29981,29981,29980,29981,0]} 1. d4 {[%emt 0:01:39]} Nf6 {[%emt 0:00:11]} 2. c4 {[%emt 0:00:05]} c5 {[%emt 0:00:15]} 3. d5 {[%emt 0:00:05]} e6 {[%emt 0:01:33]} 4. Nc3 {[%emt 0:00:20]} exd5 {[%emt 0:00:14]} 5. cxd5 {[%emt 0:00:03]} d6 {[%emt 0:00:13]} 6. Nf3 {[%emt 0:00:39]} g6 {[%emt 0:00:17]} 7. Nd2 {[%emt 0:00:06]} Nbd7 {[%emt 0:08:55]} 8. e4 {[%emt 0:00:04]} Bg7 {[%emt 0:02:09]} 9. Be2 {[%emt 0:00:03]} O-O {[%emt 0:00:39]} 10. O-O {[%emt 0:00:03]} Re8 {[%emt 0:00:51]} 11. Qc2 {[%emt 0:00:10]} Ne5 {[%emt 0:17:04]} 12. a4 {[%emt 0:04:55]} g5 {[%emt 0:05:11] 12...a6 gains popularity.} 13. Ra3 {[%emt 0:02:22]} Qe7 {[%emt 0:11:30] A77: Modern Benoni: Classical: 9...Re8 10 Nd2: 10...a6 and 10...Nbd7.} 14. Re1 {[%emt 0:06:28] [#]} Nfd7 $146 {[%emt 0:02:41]} (14... Nfg4 $14) ({Predecessor:} 14... a6 15. a5 Rb8 16. Nf1 h6 17. Ng3 Ng6 18. Na4 Nh4 19. Bd2 Bd7 20. Nb6 Bb5 21. Bc3 {½-½ (46) Van der Sterren,P (2515)-Maiwald,J (2495) Germany 1997}) 15. Nd1 {[%emt 0:15:58]} Ng6 {[%emt 0:08:35] White is better.} 16. Ne3 {[%emt 0:00:58]} Nf6 {[%emt 0:05:00][%cal Rf6e4]} 17. Bb5 {[%emt 0:23:51]} Rd8 {[%emt 0:08:18]} 18. a5 {[%emt 0:00:50]} Ng4 {[%emt 0:04:20]} 19. Ndf1 {[%emt 0:03:15]} Nxe3 {[%emt 0:02:35]} 20. Bxe3 {[%emt 0:01:13]} Qe5 {[%emt 0:01:18]} (20... Rb8 $14) 21. Rb3 {[%emt 0:01:04]} (21. b4 $142) 21... f5 {[%emt 0:00:47]} (21... Qe7 $16) 22. exf5 $18 {[%emt 0:07:37]} (22. Bxg5 $6 Rf8 $16) 22... Bxf5 {[%emt 0:02:07]} 23. Qd2 {[%emt 0:00:03]} Nf4 {[%emt 0:04:31]} 24. Ng3 {[%emt 0:01:18] Against Qe4. Bxf4 is the strong threat.} Bg6 {[%emt 0:06:31]} 25. h4 {[%emt 0:21:56]} h6 {[%emt 0:02:27]} (25... Nxd5 $2 26. Bxg5 (26. Bxc5 Qf4 $18) 26... Qd4 27. Qxd4 Bxd4 28. Bxd8 $18) (25... Qxd5 $2 26. Qxd5+ Nxd5 27. Bc4 $18) (25... a6 $16 26. hxg5 Rf8) 26. hxg5 {[%emt 0:00:02]} hxg5 {[%emt 0:00:09]} 27. Bc4 {[%emt 0:00:00]} Qf6 {[%emt 0:04:14]} (27... b6 $16) 28. Rxb7 {[%emt 0:00:19]} Rab8 {[%emt 0:00:36]} 29. Rxb8 {[%emt 0:03:27]} (29. Rxa7 Rxb2 30. Qd1 Rf8 $11) (29. a6 $18) 29... Rxb8 $14 {[%emt 0:00:06]} 30. b3 {[%emt 0:00:00]} Qc3 {[%emt 0:01:33]} 31. Ne2 {[%emt 0:01:28]} Qxd2 {[%emt 0:00:35]} 32. Bxd2 {[%emt 0:00:03]} Nd3 {[%emt 0:00:32]} 33. Bxd3 {[%emt 0:01:40]} Bxd3 {[%emt 0:00:05]} 34. Nc1 {[%emt 0:00:02]} c4 {[%emt 0:00:50]} (34... Bb5 $14) 35. Nxd3 $16 {[%emt 0:04:24]} (35. Bxg5 Rxb3 36. Re8+ (36. Nxb3 cxb3 37. Bc1 b2 $11) 36... Kf7 37. Re7+ Kf8 $14) 35... cxd3 {[%emt 0:00:05][%mdl 4096] Endgame [#] KRB-KRB} 36. b4 {[%emt 0:00:01]} ({Don't play} 36. Bxg5 Rxb3 37. Rd1 Ra3 $16) 36... Rb5 {[%emt 0:00:57]} 37. Rb1 {[%emt 0:01:08]} ({Much less strong is} 37. Bxg5 $6 Bc3 38. Rd1 (38. Re8+ Kf7 $17) 38... Bxb4 $14) 37... Rxd5 $2 {[%emt 0:00:32] [#]} (37... g4 38. Rb3 Rxd5) 38. b5 $1 $18 {[%emt 0:00:04] Threatens to win with b6.} Bd4 {[%emt 0:00:32]} 39. b6 {[%emt 0:00:43] White wants to mate with b7.} axb6 {[%emt 0:00:05]} 40. axb6 {[%emt 0:00:00] Hoping for b7.} Rf5 {[%emt 0:00:00]} 41. b7 {[%emt 0:04:35]} Bxf2+ {[%emt 0:02:00]} 42. Kh2 {[%emt 0:00:07]} Ba7 {[%emt 0:00:53]} 43. b8=R+ {[%emt 0:00:06]} Bxb8 {[%emt 0:00:08]} 44. Rxb8+ {[%emt 0:00:03] KRB-KR} Kf7 {[%emt 0:01:17]} 45. Rb3 {[%emt 0:00:46]} Rd5 {[%emt 0:01:52]} 46. Kg3 {[%emt 0:00:48]} Kg6 {[%emt 0:02:23]} 47. Kf3 {[%emt 0:04:04]} Rf5+ {[%emt 0:13:31]} 48. Kg3 {[%emt 0:00:25]} Rd5 {[%emt 0:00:51]} 49. Ra3 {[%emt 0:09:09]} Rd4 {[%emt 0:08:15]} 50. Kf3 {[%emt 0:01:10]} Kh5 {[%emt 0:00:15]} 51. g3 {[%emt 0:01:25]} d5 {[%emt 0:01:58]} 52. Rb3 {[%emt 0:01:32] Intending Rb4 and mate.} Kg6 {[%emt 0:00:32]} 53. Rb4 {[%emt 0:04:15] White mates.} Rc4 {[%emt 0:00:26]} 54. Rxc4 {[%emt 0:00:12]} dxc4 {[%emt 0:00:04]} 55. Ke4 {[%emt 0:02:10]} g4 {[%emt 0:03:02]} 56. Ke5 {[%emt 0:00:15]} Kh5 {[%emt 0:00:57]} 57. Ke4 $2 {[%mdl 32768] Weighted Error Value: White=0.28 (precise) /Black=0.43. Sensor Board Error (Ke4/e5)?} (57. Kf4 {mates} Kg6 58. Ke5 Kf7 59. Kd4 Kg7 60. Kxc4 Kf6 61. Kxd3 Kf5 62. Bc3) 1-0

[Event "Polish Youth Ekstraliga 2022"]
[Site "Lublin"]
[Date "2022.06.29"]
[Round "5.27"]
[White "Wolak, Maciej"]
[Black "Warchol, Kamil"]
[Result "0-1"]
[ECO "B59"]
[WhiteElo "1316"]
[BlackElo "2079"]
[Annotator "NA RC"]
[PlyCount "57"]
[EventDate "2022.06.24"]
[EventType "team-tourn"]
[EventCountry "POL"]
[SourceTitle "playchess.com"]
[Source "ChessBase"]
[SourceQuality "1"]
[TimeControl "40/5400+30:1800+30"]

1. e4 {[%emt 0:00:11]} c5 {[%emt 0:00:07]} 2. Nf3 {[%emt 0:00:09]} d6 {[%emt 0:00:03]} 3. d4 {[%emt 0:01:25]} cxd4 {[%emt 0:00:11]} 4. Nxd4 {[%emt 0:00:02]} Nf6 {[%emt 0:00:07]} 5. Nc3 {[%emt 0:00:15]} Nc6 {[%emt 0:00:04]} 6. Be2 {[%emt 0:02:08]} e5 {[%emt 0:00:11]} 7. Nb3 {[%emt 0:02:04]} Be7 {[%emt 0:01:22]} 8. Be3 {[%emt 0:03:21]} O-O {[%emt 0:02:51]} 9. O-O {[%emt 0:00:04]} a5 {[%emt 0:00:18]} 10. f3 Be6 {[%emt 0:21:16]} 11. Nd5 {[%emt 0:07:25]} a4 {[%emt 0:08:35]} 12. Nc1 {[%emt 0:02:58]} Bxd5 {[%emt 0:17:21]} 13. exd5 {[%emt 0:00:10]} Nb8 {[%emt 0:00:43]} 14. c4 {[%emt 0:02:34]} Nbd7 {[%emt 0:01:52]} 15. b3 {[%emt 0:01:23]} Nh5 {[%emt 0:06:26]} 16. Nd3 {[%emt 0:03:09]} Qc7 {[%emt 0:12:38]} 17. Rc1 {[%emt 0:01:42]} axb3 {[%emt 0:09:30]} 18. Qxb3 {[%emt 0:00:17]} Rfc8 {[%emt 0:00:25]} 19. Rc2 {[%emt 0:07:10]} Kh8 {[%emt 0:02:21]} 20. f4 {[%emt 0:01:52]} Nxf4 {[%emt 0:01:18]} 21. Nxf4 {[%emt 0:00:31]} exf4 {[%emt 0:00:01]} 22. Bxf4 {[%emt 0:00:56]} Nf6 {[%emt 0:04:48]} 23. Bd3 {[%emt 0:01:52]} Qc5+ {[%emt 0:01:53]} 24. Kh1 {[%emt 0:00:46]} Rc7 {[%emt 0:00:12]} 25. h3 {[%emt 0:03:44]} Ra3 {[%emt 0:00:51]} 26. Qb1 {[%emt 0:03:55]} Rxd3 {[%emt 0:00:53]} 27. Rb2 {[%emt 0:00:17]} Qxc4 {[%emt 0:02:07]} 28. Rxb7 $19 {[%emt 0:00:29]} Rc3 {[%emt 0:00:38]} 29. Bg5 {[%emt 0:02:43]} 0-1